bitfinex-derivatives/quotes_ETHF0:USTF0_20250918
["timestamp","ask_amount","ask_price","bid_price","bid_amount"]
[1758162408044,2.21485486,4609.4,4609.3,0.1735]
[1758162408247,2.99822616,4609.4,4609.3,0.1735]
[1758162408442,2.75931168,4609.4,4609.3,0.1735]
[1758162408642,2.99822837,4609.4,4609.3,0.1735]
[1758162408843,2.23890094,4609.4,4609.3,0.1735]
[1758162409049,2.99822837,4609.4,4609.3,0.1735]
[1758162409250,2.23890094,4609.4,4609.3,0.1735]
[1758162409456,2.99822837,4609.4,4609.3,0.1735]
[1758162410157,2.99822837,4609.4,4608.5,0.2971]
[1758162410338,2.99822837,4609.4,4608.4,3.2078]
[1758162410339,1.45552743,4608.7,4608.6,0.3187]
[1758162410541,1.67452743,4608.7,4608.6,0.524]
[1758162410741,1.67452743,4608.7,4608.6,0.0216]
[1758162410942,2.21893565,4608.7,4608.6,0.0216]
[1758162412346,2.45792076,4608.7,4608.6,0.0216]
[1758162414646,2.23892076,4608.7,4608.6,0.0216]
[1758162414845,2.45792076,4608.7,4608.6,0.0216]
[1758162415043,2.45792076,4608.7,4608.6,0.3187]
[1758162415447,2.23892076,4608.7,4608.6,0.3187]
[1758162415651,2.45792076,4608.7,4608.6,0.3187]
[1758162415844,2.23892076,4608.7,4608.6,0.7171]
[1758162416047,2.45792076,4608.7,4608.6,0.7171]
[1758162416450,2.21893565,4608.7,4608.6,0.7171]
[1758162416755,1.99993565,4608.7,4608.6,0.7171]
[1758162416956,2.21893565,4608.7,4608.6,0.7171]
[1758162417653,0.54440822,4608.7,4608.6,0.7171]
[1758162417854,0.97832743,4608.7,4608.6,0.7171]
[1758162419857,1.34760607,4608.7,4608.6,0.7171]
[1758162421353,1.05370607,4609.5,4609.0,0.1239]
[1758162421354,0.3097,4609.3,4609.0,0.1239]
[1758162421556,0.93230607,4609.4,4609.3,0.2885]
[1758162421758,0.54605458,4609.4,4609.3,0.6784]
[1758162421950,0.50925337,4609.6,4609.5,0.8023]
[1758162422155,0.72825337,4609.6,4609.5,0.8023]
[1758162422860,0.41855337,4609.6,4609.5,0.8023]
[1758162423454,0.19955337,4609.6,4609.5,0.8023]
[1758162423654,0.41855337,4609.6,4609.5,0.8023]
[1758162424155,0.19955337,4609.6,4609.5,0.8023]
[1758162424456,0.22225337,4609.6,4609.5,0.8023]
[1758162424858,0.00325337,4609.6,4609.5,0.8023]
[1758162425059,0.00325337,4609.6,4609.5,1.73460607]
[1758162425363,0.00325337,4609.6,4609.5,0.8023]
[1758162427557,0.00325337,4609.6,4609.5,1.73460607]
[1758162428559,0.00325337,4609.6,4609.5,5.73460607]
[1758162428858,1.12760607,4610.7,4610.6,0.7072]
[1758162429055,1.89189236,4610.7,4610.6,0.7072]
[1758162429251,2.41039236,4610.7,4610.6,0.7072]
[1758162430960,1.25908629,4610.7,4610.6,0.7072]
[1758162431257,1.17008629,4610.7,4610.6,0.7072]
[1758162431657,0.95108629,4610.7,4610.6,0.7072]
[1758162432358,1.17008629,4610.7,4610.6,0.7072]
[1758162432663,0.9328,4610.7,4610.6,0.7072]
[1758162432963,1.86510607,4610.7,4610.6,0.7072]
[1758162437068,1.86510607,4610.7,4610.4,3.2078]
[1758162437366,0.7138,4610.6,4610.5,0.3072]
[1758162437563,0.7138,4610.6,4610.4,3.2078]
[1758162437768,0.8321,4610.5,4610.4,3.2078]
[1758162438168,0.8321,4610.5,4610.4,3.515]
[1758162438466,0.8321,4610.5,4610.4,3.714]
[1758162438668,0.7138,4610.5,4610.4,3.714]
[1758162439062,0.7138,4610.5,4610.4,3.915]
[1758162439863,0.8321,4610.5,4610.2,0.0216]
[1758162440069,1.64610607,4610.3,4610.2,0.0216]
[1758162440269,2.19072304,4610.3,4610.2,0.0216]
[1758162442568,1.25841697,4610.3,4610.2,0.5278]
[1758162442771,1.25841697,4610.3,4610.2,0.7288]
[1758162442772,0.4058,4610.3,4610.2,0.7288]
[1758162442970,0.4143,4610.3,4610.2,0.7288]
[1758162444265,0.219,4610.3,4610.2,0.4216]
[1758162444869,0.219,4610.3,4610.2,0.7288]
[1758162445273,1.15130607,4610.4,4610.2,0.4216]
[1758162445474,1.34660607,4610.4,4610.3,0.7072]
[1758162446073,1.89274728,4610.4,4610.3,0.7072]
[1758162448170,2.20074728,4610.4,4610.3,0.7072]
[1758162448677,1.89274728,4610.4,4610.3,0.7072]
[1758162449081,0.95944121,4610.4,4610.3,0.7072]
[1758162450076,0.74144121,4610.4,4610.3,0.7072]
[1758162452381,0.54614121,4610.4,4610.3,0.7072]
[1758162453585,0.78211006,4610.4,4610.3,0.7072]
[1758162455175,2.42821613,4610.4,4610.3,0.7072]
[1758162460695,0.78211006,4610.4,4610.3,0.7072]
[1758162461086,0.78428554,4610.4,4610.3,0.7072]
[1758162463689,0.54831669,4610.4,4610.3,0.7072]
[1758162466590,0.3044,4611.2,4611.0,0.1149]
[1758162466796,0.2045,4611.2,4611.1,4.85470607]
[1758162467191,0.3044,4611.5,4611.1,4.85470607]
[1758162467385,0.7122,4611.5,4611.4,0.7146]
[1758162467590,0.4078,4611.5,4611.4,0.7146]
[1758162467788,0.7122,4611.5,4611.4,0.7146]
[1758162468505,0.4078,4611.5,4611.4,0.7146]
[1758162469301,0.7122,4611.5,4611.4,0.7146]
[1758162469699,1.64450607,4611.5,4611.4,0.7146]
[1758162470993,1.64450607,4611.5,4611.4,0.5075]
[1758162471293,0.7122,4611.2,4610.8,0.218]
[1758162471494,1.64450607,4610.9,4610.8,0.218]
[1758162471997,1.64450607,4610.9,4610.5,3.3227]
[1758162471998,1.34010607,4610.9,4610.6,0.3152]
[1758162472198,0.5077,4610.8,4610.7,0.5075]
[1758162472401,0.7122,4610.8,4610.7,0.5075]
[1758162474496,0.7122,4610.8,4610.7,0.3152]
[1758162475198,0.7122,4610.8,4610.7,0.5075]
[1758162477391,0.7122,4610.8,4610.5,3.2294]
[1758162477600,1.64450607,4610.6,4610.5,0.5291]
[1758162478603,2.19051678,4610.6,4610.5,0.5291]
[1758162479199,2.19051678,4610.6,4610.5,0.0216]
[1758162479399,2.42681045,4610.6,4610.5,0.0216]
[1758162479905,2.25384452,4610.6,4610.5,0.0216]
[1758162480597,0.6953,4610.1,4610.0,3.2078]
[1758162480797,2.00065085,4610.1,4610.0,3.2078]
[1758162481603,6.91150661,4610.1,4610.0,0.4148]
[1758162481800,6.69458348,4610.1,4610.0,0.4148]
[1758162483206,0.21692,4610.0,4609.8,0.0472]
[1758162483509,4.96824334,4609.9,4609.5,0.1263]
[1758162483808,0.75934014,4609.7,4609.5,0.1263]
[1758162484006,1.0011032,4609.6,4609.5,0.1263]
[1758162484202,0.76501071,4609.6,4609.5,0.1263]
[1758162485410,0.76501071,4609.6,4609.5,0.4148]
[1758162489211,0.219,4609.6,4609.5,0.4148]
[1758162490311,0.75934014,4609.7,4609.5,0.1263]
[1758162490618,0.75934014,4609.7,4609.6,0.3032]
[1758162490816,1.5222776,4609.7,4609.6,0.3032]
[1758162491316,2.28161774,4609.7,4609.6,0.3032]
[1758162491915,1.5222776,4609.7,4609.6,0.3032]
[1758162492116,2.28161774,4609.7,4609.6,0.3032]
[1758162494819,1.5222776,4609.7,4609.6,0.3032]
[1758162495514,2.51658505,4609.7,4609.6,0.3032]
[1758162495916,6.51658505,4609.7,4609.6,0.3032]
[1758162496118,6.51658505,4609.7,4609.6,0.1043]
[1758162496427,6.51658505,4609.7,4609.0,0.1263]
[1758162496616,4.72648028,4609.1,4609.0,0.1263]
[1758162496811,4.94548028,4609.1,4609.0,0.1263]
[1758162497622,5.48832129,4609.1,4609.0,0.1263]
[1758162498327,5.48832129,4609.1,4609.0,0.4295]
[1758162498616,11.76634171,4609.1,4608.8,0.0216]
[1758162498812,0.2622,4608.3,4608.2,0.02170068]
[1758162499011,1.24054014,4608.3,4608.2,0.02170068]
[1758162499920,1.17814014,4608.3,4608.2,0.41880068]
[1758162500122,0.4188,4608.3,4608.2,0.41880068]
[1758162500419,1.17814014,4608.3,4608.2,0.41880068]
[1758162500820,1.17814014,4608.3,4608.2,0.72200068]
[1758162501125,1.17814014,4608.3,4608.2,0.52640068]
[1758162502524,2.90233989,4608.3,4608.2,0.52640068]
[1758162503617,2.96473989,4608.3,4608.2,0.52640068]
[1758162503817,3.72408003,4608.3,4608.2,0.52640068]
[1758162504019,3.72408003,4608.3,4608.2,0.32490068]
[1758162505917,2.96473989,4608.3,4608.2,0.32490068]
[1758162506125,3.72408003,4608.3,4608.2,0.32490068]
[1758162506325,3.66168003,4608.3,4608.2,0.52640068]
[1758162506722,3.72408003,4608.3,4608.2,0.52640068]
[1758162506923,3.72408003,4608.3,4608.2,0.32490068]
[1758162507124,4.26874146,4608.3,4608.2,0.32490068]
[1758162507426,3.44700132,4608.3,4608.2,0.52640068]
[1758162507626,2.90233989,4608.3,4608.2,0.52640068]
[1758162508326,3.44743043,4608.3,4608.2,0.52640068]
[1758162509821,4.26917057,4608.3,4608.2,0.52640068]
[1758162510019,4.26917057,4608.3,4608.2,0.32490068]
[1758162511226,4.26930617,4608.3,4608.2,0.32490068]
[1758162513222,4.51151204,4608.3,4608.2,0.02170068]
[1758162513625,4.51151204,4608.3,4608.2,0.32490068]
[1758162517627,3.6897719,4608.3,4608.2,0.52640068]
[1758162517831,3.6897719,4608.3,4608.2,0.71750068]
[1758162519239,3.69257677,4608.3,4608.2,0.71750068]
[1758162519831,2.61433663,4608.3,4608.2,0.71750068]
[1758162520032,3.59267677,4608.3,4608.2,0.71750068]
[1758162520419,3.37367677,4608.3,4608.2,0.71750068]
[1758162520626,3.59267677,4608.3,4608.2,0.71750068]
[1758162522134,2.83333663,4608.3,4608.2,0.71750068]
[1758162522335,3.59267677,4608.3,4608.2,0.71750068]
[1758162522931,3.69277677,4608.3,4608.2,0.71750068]
[1758162523635,1.64947702,4608.3,4608.2,0.71750068]
[1758162523932,1.86847702,4608.3,4608.2,0.71750068]
[1758162524132,1.64947702,4608.3,4608.2,0.71750068]
[1758162524441,1.76857702,4608.3,4608.2,0.71750068]
[1758162524629,1.00923688,4608.3,4608.2,0.71750068]
[1758162525127,1.00980692,4608.3,4608.2,0.71750068]
[1758162527529,1.10990692,4608.3,4608.2,0.71750068]
[1758162530036,1.21000692,4608.3,4608.2,0.71750068]
[1758162531830,1.27260692,4608.3,4608.2,0.52640068]
[1758162532030,2.03194706,4608.3,4608.2,0.52640068]
[1758162532233,2.03194706,4608.3,4608.2,0.32490068]
[1758162532634,5.96934706,4608.3,4606.7,3.2078]
[1758162532939,1.46124014,4607.1,4607.0,0.3255]
[1758162533140,2.22827115,4607.1,4607.0,0.3255]
[1758162534734,2.22827115,4607.1,4607.0,0.6241]
[1758162535037,0.76703101,4607.1,4607.0,0.8152]
[1758162535337,1.52637115,4607.1,4607.0,0.8152]
[1758162535541,1.72497115,4607.1,4607.0,0.8152]
[1758162536341,1.17694014,4607.1,4607.0,0.8152]
[1758162539239,1.17694014,4607.1,4606.5,0.88374014]
[1758162539240,0.2851,4607.0,4606.6,0.307]
[1758162539446,0.75934014,4606.8,4606.7,0.307]
[1758162539741,0.219,4606.8,4606.7,0.6937]
[1758162540544,0.2851,4607.4,4606.7,0.3867]
[1758162540746,1.91019262,4607.3,4607.2,0.6937]
[1758162541047,2.11499262,4607.3,4607.2,0.6937]
[1758162541348,0.55115019,4607.3,4607.2,5.62674243]
[1758162541558,1.14004243,4607.9,4607.8,0.6937]
[1758162541757,1.91026462,4607.9,4607.8,0.6937]
[1758162541955,2.11506462,4607.9,4607.8,0.6937]
[1758162542160,2.11506462,4607.9,4607.5,0.307]
[1758162542161,0.4118,4607.6,4607.5,0.307]
[1758162542454,0.6308,4607.6,4607.5,0.8187]
[1758162542660,1.91026462,4607.6,4607.5,0.8187]
[1758162544551,1.69126462,4607.6,4607.5,0.8187]
[1758162544754,1.70326462,4607.6,4607.5,0.8187]
[1758162544950,1.15204243,4607.6,4607.5,0.8187]
[1758162547456,1.36104243,4607.6,4607.5,0.8187]
[1758162548265,1.91220186,4607.6,4607.5,0.8187]
[1758162548656,1.36104243,4607.6,4607.5,0.8187]
[1758162549857,0.219,4607.7,4607.6,0.3148]
[1758162550162,0.77017406,4607.7,4607.6,0.719]
[1758162550461,0.97917406,4607.7,4607.6,0.719]
[1758162551162,1.48197406,4607.7,4607.6,0.719]
[1758162551860,1.48197406,4607.7,4607.6,0.3148]
[1758162552253,1.48197406,4607.7,4607.6,0.5193]
[1758162552858,1.26297406,4607.7,4607.6,0.5193]
[1758162553164,1.48197406,4607.7,4607.6,0.5193]
[1758162555465,1.48197406,4607.7,4607.6,0.719]
[1758162555664,2.41501649,4607.7,4607.6,0.719]
[1758162555865,2.19601649,4607.7,4607.6,0.719]
[1758162556165,2.41501649,4607.7,4607.6,0.719]
[1758162557060,1.89491649,4607.7,4607.6,0.719]
[1758162557568,2.11391649,4607.7,4607.6,0.719]
[1758162557866,1.89491649,4607.7,4607.6,0.719]
[1758162558069,2.11391649,4607.7,4607.6,0.719]
[1758162559167,1.89491649,4607.7,4607.6,0.719]
[1758162559466,2.11391649,4607.7,4607.6,0.719]
[1758162562072,0.96187406,4607.7,4607.6,0.719]
[1758162562368,0.97917406,4607.7,4607.6,0.719]
[1758162563669,0.55117406,4607.7,4607.6,0.719]
[1758162565467,0.55117406,4607.7,4607.6,4.719]
[1758162565668,1.45314243,4608.3,4607.7,0.3148]
[1758162565864,1.26583713,4608.2,4608.1,0.5193]
[1758162566967,2.19887956,4608.2,4608.1,0.5193]
[1758162568471,2.19887956,4608.2,4608.1,0.3148]
[1758162568967,0.3011,4608.1,4607.9,0.3148]
[1758162569168,2.20044061,4608.0,4607.9,0.3148]
[1758162569369,2.20044758,4608.0,4607.9,0.3148]
[1758162570372,1.64484243,4608.0,4607.9,0.3148]
[1758162571068,0.7118,4607.9,4607.5,0.4375]
[1758162571265,1.64484243,4607.6,4607.5,0.4375]
[1758162571772,1.64484243,4607.6,4607.5,0.642]
[1758162573081,0.4107,4607.6,4607.5,0.8417]
[1758162573373,0.9308,4608.1,4608.0,0.642]
[1758162573569,1.48660083,4608.1,4608.0,0.642]
[1758162574073,1.48660083,4608.1,4608.0,0.5193]
[1758162576474,1.48662202,4608.1,4608.0,0.5193]
[1758162576874,1.48662202,4608.1,4608.0,0.6354]
[1758162577176,1.48662202,4608.1,4608.0,0.8276]
[1758162579085,1.26762202,4608.1,4608.0,0.8276]
[1758162579280,1.18552202,4608.1,4608.0,0.8276]
[1758162580676,0.76482202,4608.1,4608.0,0.8276]
[1758162580882,0.98382202,4608.1,4608.0,0.8276]
[1758162581179,0.209,4608.1,4608.0,1.76064243]
[1758162581374,0.4188,4608.6,4608.5,0.4984]
[1758162581572,0.97465221,4608.6,4608.5,0.8041]
[1758162582881,0.75565221,4608.6,4608.5,0.8041]
[1758162583082,0.1998,4608.6,4608.5,0.8041]
[1758162584680,0.219,4608.9,4608.5,0.4984]
[1758162584978,0.219,4608.9,4608.7,0.688]
[1758162584979,0.75581909,4608.8,4608.7,0.688]
[1758162586776,0.219,4609.0,4608.7,0.3823]
[1758162586983,0.219,4609.0,4608.5,0.1161]
[1758162586984,0.1998,4608.9,4608.8,0.688]
[1758162587684,0.7212,4608.9,4608.8,0.4958]
[1758162588581,0.7212,4608.9,4608.8,0.688]
[1758162588884,0.4073,4608.9,4608.8,0.688]
[1758162589387,0.1998,4608.9,4608.8,0.688]
[1758162589883,0.4188,4609.1,4609.0,0.4984]
[1758162590083,0.4188,4609.1,4609.0,0.8041]
[1758162590486,0.1998,4609.1,4609.0,0.8041]
[1758162591888,0.4073,4609.1,4609.0,0.8041]
[1758162592588,1.65424243,4609.1,4609.0,0.8041]
[1758162594489,0.7212,4609.1,4609.0,0.8041]
[1758162594790,1.65424243,4609.1,4609.0,0.8041]
[1758162594981,1.65424243,4609.1,4609.0,0.4958]
[1758162595182,1.65424243,4609.1,4609.0,0.3057]
[1758162599390,1.34034243,4609.1,4608.7,3.2078]
[1758162599595,0.7022,4608.9,4608.8,0.2858]
[1758162600196,0.7022,4608.9,4608.8,0.4769]
[1758162601889,1.46181764,4608.9,4608.8,0.4769]
[1758162602496,1.46181764,4608.9,4608.8,0.2858]
[1758162602793,0.7022,4608.9,4608.8,0.2858]
[1758162603191,0.7022,4608.9,4608.6,0.2858]
[1758162603393,1.46181764,4608.7,4608.5,0.1735]
[1758162604092,0.55452754,4608.6,4608.5,0.1735]
[1758162604394,1.25672754,4608.6,4608.5,0.1735]
[1758162605190,0.7022,4608.6,4608.5,0.1735]
[1758162605490,1.25662892,4608.6,4608.5,0.4593]
[1758162605991,1.25662892,4608.6,4608.5,0.6504]
[1758162606286,0.75932892,4608.6,4608.5,0.9807]
[1758162606491,0.55442892,4608.6,4608.5,1.74031764]
[1758162607302,0.55442892,4608.6,4608.5,0.9807]
[1758162610198,0.55442892,4608.6,4608.5,1.74031764]
[1758162610393,3.413,4609.4,4609.3,0.7054]
[1758162610598,4.3831636,4609.4,4609.3,0.7054]
[1758162610795,1.4760636,4609.4,4609.3,0.7054]
[1758162613616,0.9563636,4609.4,4609.3,0.7054]
[1758162613914,1.4760636,4609.4,4609.3,0.7054]
[1758162614510,1.2570636,4609.4,4609.3,0.7054]
[1758162614812,0.5554636,4609.4,4609.3,1.46501764]
[1758162615414,0.2052,4609.4,4609.3,1.46501764]
[1758162616218,0.2052,4609.4,4609.3,0.7054]
[1758162616620,3.4268,4609.9,4609.5,0.12]
[1758162616919,0.55538033,4609.8,4609.7,0.7054]
[1758162617712,1.31499797,4609.8,4609.7,0.7054]
[1758162617912,1.52019797,4609.8,4609.7,0.7054]
[1758162618210,2.01659797,4609.8,4609.7,0.7054]
[1758162618815,1.71589797,4609.8,4609.7,0.7054]
[1758162620524,3.413,4610.5,4610.4,0.7054]
[1758162620821,4.88801764,4610.5,4610.4,0.287]
[1758162621215,4.88801764,4610.5,4610.4,0.4951]
[1758162622619,5.23716826,4610.5,4609.5,0.339]
[1758162622823,1.25601764,4609.9,4609.8,0.2081]
[1758162623019,0.7016,4609.9,4609.8,0.7054]
[1758162623325,0.4009,4609.9,4609.8,0.7054]
[1758162625526,0.2052,4609.9,4609.8,1.46501764]
[1758162626328,0.97861764,4610.2,4609.8,1.46501764]
[1758162626530,0.2052,4610.1,4610.0,0.8254]
[1758162628930,0.7016,4610.1,4610.0,0.8254]
[1758162629322,0.7016,4610.1,4610.0,0.6151]
[1758162629528,1.46121764,4610.1,4610.0,0.8254]
[1758162630630,1.16051764,4610.1,4610.0,0.8254]
[1758162632729,0.219,4610.4,4610.0,0.5384]
[1758162632930,0.97861764,4610.4,4610.3,0.287]
[1758162633124,1.73644847,4610.4,4610.3,0.7054]
[1758162633529,1.93214847,4610.4,4610.3,0.7054]
[1758162633834,1.71314847,4610.4,4610.3,0.7054]
[1758162634231,0.7016,4610.0,4609.9,0.6686]
[1758162634426,0.95353083,4610.0,4609.9,0.8789]
[1758162634732,0.2052,4610.0,4609.9,0.8789]
[1758162635734,0.96281764,4610.4,4610.3,0.4042]
[1758162636036,1.95078258,4610.4,4610.3,0.7163]
[1758162636236,1.19116494,4610.4,4610.3,0.7163]
[1758162636632,0.96469224,4610.4,4610.3,0.7163]
[1758162637339,3.2078,4611.0,4610.3,1.47591764]
[1758162637534,3.411,4611.0,4610.9,0.7163]
[1758162637743,4.19108411,4611.0,4610.9,0.7163]
[1758162638235,1.19158411,4611.0,4610.9,0.7163]
[1758162638533,1.50658411,4611.0,4610.9,0.7163]
[1758162639536,1.19158411,4611.0,4610.9,0.7163]
[1758162639737,0.98328411,4611.0,4610.9,1.47591764]
[1758162640039,0.98328411,4611.0,4610.9,0.7163]
[1758162640634,0.75668747,4611.0,4610.9,0.7163]
[1758162643144,1.27998747,4611.0,4610.9,0.7163]
[1758162643339,1.27998747,4611.0,4610.9,0.5216]
[1758162643536,1.50635932,4611.0,4610.9,0.5216]
[1758162643737,1.27998747,4611.0,4610.9,0.5216]
[1758162646841,1.27998747,4611.0,4610.7,0.3337]
[1758162647044,1.17111764,4610.8,4610.7,0.3337]
[1758162647243,2.03960511,4610.8,4610.7,0.3337]
[1758162647640,2.03960511,4610.8,4610.7,0.5432]
[1758162650343,2.03960511,4610.8,4610.7,0.3337]
[1758162652347,2.03960511,4610.8,4610.7,0.5432]
[1758162653149,0.96498747,4610.8,4610.7,0.7379]
[1758162653352,0.96498747,4610.8,4610.7,1.49751764]
[1758162653849,0.75668747,4610.8,4610.7,0.7379]
[1758162654051,0.75668747,4610.8,4610.7,1.49751764]
[1758162654244,0.2032,4610.8,4610.7,1.49751764]
[1758162654443,0.7372,4611.1,4611.0,0.8309]
[1758162654742,1.49874655,4611.1,4611.0,0.8309]
[1758162655544,0.55324655,4611.1,4611.0,0.8309]
[1758162655739,0.75961764,4611.9,4611.1,0.3121]
[1758162655942,0.2032,4611.4,4611.3,1.47591764]
[1758162657651,0.2032,4611.4,4611.3,0.7163]
[1758162663149,0.1923,4611.6,4611.5,0.8513]
[1758162663749,0.3879,4611.6,4611.5,0.8513]
[1758162664548,0.3879,4611.6,4611.1,0.1734]
[1758162664549,0.3879,4611.2,4611.1,0.1734]
[1758162664753,1.61755423,4611.2,4611.1,0.1734]
[1758162665356,1.8436497,4611.2,4611.1,0.1734]
[1758162666255,0.6864,4611.2,4611.1,0.1734]
[1758162666459,1.61755423,4611.2,4611.1,0.4669]
[1758162666652,1.84378493,4611.2,4611.1,0.1734]
[1758162667050,1.61755423,4611.2,4611.1,0.1734]
[1758162667246,1.84382656,4611.2,4611.1,0.1734]
[1758162667449,1.61755423,4611.2,4611.1,0.4669]
[1758162667650,2.16896829,4611.2,4611.1,0.4669]
[1758162668447,1.23781406,4611.2,4611.1,0.8736]
[1758162668652,2.16896829,4611.2,4611.1,0.8736]
[1758162669454,0.75661406,4611.2,4611.1,0.8736]
[1758162669960,3.2078,4611.6,4611.5,0.8178]
[1758162670256,3.75971467,4611.6,4611.5,0.8178]
[1758162670858,0.219,4611.9,4611.6,0.2935]
[1758162671057,0.75706111,4611.8,4611.7,0.7002]
[1758162671254,0.2052,4611.8,4611.7,0.7002]
[1758162671461,0.4242,4611.8,4611.7,0.7002]
[1758162671858,0.2052,4611.8,4611.7,0.7002]
[1758162672060,0.4242,4611.8,4611.7,0.7002]
[1758162672758,0.6236,4611.8,4611.7,0.7002]
[1758162673250,0.9209,4611.8,4611.7,0.7002]
[1758162673659,0.9209,4611.8,4611.7,0.2935]
[1758162675057,0.9209,4611.8,4611.7,0.5025]
[1758162675456,0.6236,4611.8,4611.7,0.7002]
[1758162676757,0.9209,4611.8,4611.7,0.7002]
[1758162676961,0.4046,4611.8,4611.7,0.7002]
[1758162677452,0.6236,4611.8,4611.7,0.7002]
[1758162679162,0.9209,4611.8,4611.7,0.7002]
[1758162679758,0.6236,4611.8,4611.7,0.7002]
[1758162679958,0.4046,4611.8,4611.7,0.7002]
[1758162680154,0.4242,4611.8,4611.7,0.7002]
[1758162680365,0.219,4611.8,4611.7,1.63135423]
[1758162681457,0.2052,4611.9,4611.8,0.7002]
[1758162681755,0.4242,4611.9,4611.8,0.7002]
[1758162681954,0.4242,4611.9,4611.7,0.93115423]
[1758162681955,0.4046,4612.4,4612.3,0.7002]
[1758162682153,0.84980858,4612.4,4612.3,1.63135423]
[1758162682351,1.40087636,4612.4,4612.3,1.63135423]
[1758162683163,1.40087636,4612.4,4612.3,0.7002]
[1758162683363,1.69817636,4612.4,4612.3,0.7002]
[1758162683753,1.17466778,4612.4,4612.3,0.7002]
[1758162684366,1.47196778,4612.4,4612.3,0.5025]
[1758162684863,1.17466778,4612.4,4612.3,0.7002]
[1758162685764,0.95566778,4612.4,4612.3,0.7002]
[1758162686061,1.47196778,4612.4,4612.3,0.5025]
[1758162686264,0.55106778,4612.4,4612.3,0.7002]
[1758162686464,0.219,4612.7,4612.6,0.2935]
[1758162686652,0.77149779,4612.7,4612.6,1.63135423]
[1758162686853,0.55249779,4612.7,4612.6,1.63135423]
[1758162687057,3.4268,4612.8,4612.7,0.2935]
[1758162687265,3.97929349,4612.8,4612.7,0.7002]
[1758162687663,4.68119349,4612.8,4612.7,0.7002]
[1758162687962,4.46219349,4612.8,4612.7,0.7002]
[1758162688159,4.68119349,4612.8,4612.7,0.7002]
[1758162688359,0.6236,4612.8,4612.7,0.7002]
[1758162690655,0.4242,4612.8,4612.7,0.7002]
[1758162690860,0.95315423,4613.2,4612.7,0.7002]
[1758162691165,1.17564937,4613.1,4613.0,0.8178]
[1758162691658,1.25394937,4613.1,4613.0,0.8178]
[1758162691859,1.47294937,4613.1,4613.0,0.8178]
[1758162693555,2.4041036,4613.1,4613.0,0.8178]
[1758162693762,2.4041036,4613.1,4613.0,0.5025]
[1758162694258,2.4041036,4613.1,4613.0,0.2935]
[1758162694464,2.4041036,4613.1,4612.6,0.2935]
[1758162694465,2.63203018,4613.1,4612.6,0.2935]
[1758162694768,0.4046,4612.6,4612.5,0.8178]
[1758162695762,0.2052,4612.6,4612.5,0.8178]
[1758162696164,0.55207902,4612.6,4612.5,1.45545423]
[1758162696462,0.55207902,4612.6,4612.5,4.66325423]
[1758162696661,0.2027,4612.6,4612.5,4.66325423]
[1758162696869,0.75477902,4612.6,4612.5,4.66325423]
[1758162697272,0.75477902,4612.6,4612.5,4.0249]
[1758162697967,0.55207902,4612.6,4612.5,4.95605423]
[1758162698168,0.4217,4612.9,4612.8,0.3933]
[1758162698364,0.97470695,4612.9,4612.8,0.6861]
[1758162699074,0.75570695,4612.9,4612.8,0.6861]
[1758162699369,0.75583437,4612.9,4612.8,0.6861]
[1758162702769,0.55313437,4612.9,4612.8,0.6861]
[1758162702970,0.55313437,4612.9,4612.8,1.61725423]
[1758162703673,0.022,4613.2,4613.1,0.6861]
[1758162703979,0.022,4613.2,4613.1,1.61725423]
[1758162715679,0.2865,4614.2,4613.1,1.54245423]
[1758162715881,0.75370885,4614.1,4614.0,0.8029]
[1758162716078,0.95060885,4614.1,4614.0,0.8029]
[1758162716384,1.23710885,4614.1,4614.0,0.8029]
[1758162719181,1.23710885,4614.1,4614.0,0.2928]
[1758162719384,1.23710885,4614.1,4614.0,0.4962]
[1758162720582,1.23710885,4614.1,4614.0,0.2928]
[1758162721278,0.95060885,4614.1,4614.0,0.8261]
[1758162721485,0.75370885,4614.1,4614.0,0.8261]
[1758162721871,1.26240885,4614.1,4614.0,0.8261]
[1758162723683,1.4922461,4614.1,4614.0,0.8261]
[1758162723882,2.25016922,4614.1,4614.0,0.2928]
[1758162724078,0.4131,4613.7,4613.1,0.3156]
[1758162724273,0.0895,4614.0,4613.1,0.3156]
[1758162724274,1.17102312,4613.2,4613.1,0.7238]
[1758162724479,0.75792312,4613.4,4613.2,0.3156]
[1758162724779,0.96832312,4613.4,4613.3,0.7238]
[1758162725384,1.51861887,4613.4,4613.3,0.7238]
[1758162726380,0.99066688,4613.4,4613.3,0.7238]
[1758162726581,0.2104,4613.4,4613.3,1.48172312]
[1758162727090,3.413,4613.8,4613.7,0.4168]
[1758162727289,4.19344274,4613.8,4613.7,1.46412312]
[1758162727683,4.19344274,4613.8,4613.7,0.7062]
[1758162727983,4.19344274,4613.8,4613.7,1.46412312]
[1758162728185,3.75825901,4613.8,4613.7,1.46412312]
[1758162728587,0.55045901,4613.8,4613.7,1.46412312]
[1758162728888,1.67342312,4614.3,4614.2,0.4965]
[1758162729084,1.47838805,4614.3,4614.2,0.7062]
[1758162729289,0.98608805,4614.3,4614.2,0.7062]
[1758162729687,0.75597165,4614.3,4614.2,0.7062]
[1758162730291,0.75597165,4614.3,4614.2,1.46412312]
[1758162730292,0.55077165,4614.3,4614.2,1.46412312]
[1758162730891,0.55077165,4614.3,4614.2,5.68212312]
[1758162731187,1.38012312,4615.1,4615.0,0.825]
[1758162731382,2.45415681,4615.1,4615.0,0.825]
[1758162731990,2.45411306,4615.1,4615.0,0.825]
[1758162733793,2.22411602,4615.1,4615.0,0.825]
[1758162734590,2.00611602,4615.1,4615.0,0.825]
[1758162734790,3.2078,4615.7,4615.0,1.80092312]
[1758162734996,3.413,4615.7,4615.6,1.46412312]
[1758162736093,3.96250465,4615.7,4615.6,1.46412312]
[1758162736294,3.413,4615.7,4615.6,1.46412312]
[1758162736688,3.2078,4615.7,4615.6,1.46412312]
[1758162736888,3.413,4615.7,4615.6,1.46412312]
[1758162737089,3.612,4615.7,4615.6,1.46412312]
[1758162738691,3.612,4615.7,4615.6,0.7062]
[1758162740196,0.4042,4615.7,4615.6,0.7062]
[1758162740895,0.6975,4615.7,4615.6,0.7062]
[1758162741493,0.4042,4615.7,4615.6,0.7062]